fUST/lending_fUST_20241110
["ID","MTS","AMOUNT","RATE_DAILY","PERIOD"]
[341762192,1731216654191,-500.0,0.00030684,2]
[341762194,1731216654200,-500.0,0.00030684,2]
[341762196,1731216654209,-500.0,0.00030684,2]
[341762198,1731216654218,-500.0,0.00030684,2]
[341762200,1731216654227,-519.48923598,0.00030684,2]
[341762202,1731216654237,-500.0,0.00030684,2]
[341762204,1731216654246,-500.0,0.00030684,2]
[341762205,1731216654255,-500.0,0.00030684,2]
[341762207,1731216654264,-500.0,0.00030684,2]
[341762209,1731216654273,-500.0,0.00030684,2]
[341762211,1731216654282,-500.0,0.00030684,2]
[341762213,1731216654291,-500.0,0.00030684,2]
[341762215,1731216654300,-500.0,0.00030684,2]
[341762217,1731216654309,-501.66261574,0.00030684,2]
[341762219,1731216654318,-500.0,0.00030684,2]
[341762221,1731216654327,-500.0,0.00030684,2]
[341762223,1731216654336,-632.14001942,0.00030684,2]
[341762225,1731216654345,-500.0,0.00030684,2]
[341762227,1731216654354,-2336.0,0.00030684,2]
[341762229,1731216654363,-500.0,0.00030684,2]
[341762231,1731216654372,-666.24,0.00030684,2]
[341762233,1731216654381,-500.0,0.00030684,2]
[341762235,1731216654390,-500.0,0.00030684,2]
[341762237,1731216654399,-500.0,0.00030684,2]
[341762239,1731216654408,-500.0,0.00030684,2]
[341762241,1731216654418,-500.0,0.00030684,2]
[341762243,1731216654427,-500.0,0.00030684,2]
[341762245,1731216654436,-500.0,0.00030684,2]
[341762247,1731216654445,-500.0,0.00030684,2]
[341762248,1731216654455,-500.0,0.00030684,2]
[341762250,1731216654465,-500.0,0.00030684,2]
[341762252,1731216654474,-500.0,0.00030684,2]
[341762254,1731216654483,-500.0,0.00030684,2]
[341762256,1731216654491,-500.0,0.00030684,2]
[341762258,1731216654500,-500.0,0.00030684,2]
[341762267,1731216654574,-500.0,0.00030684,2]
[341762269,1731216654584,-163.12045314,0.00030684,2]
[341762271,1731216654593,-500.0,0.00030684,2]
[341762273,1731216654602,-500.0,0.00030684,2]
[341762275,1731216654611,-500.0,0.00030684,2]
[341762277,1731216654620,-500.0,0.00030684,2]
[341762279,1731216654629,-500.0,0.00030684,2]
[341762280,1731216654638,-500.0,0.00030684,2]
[341762283,1731216654648,-500.0,0.00030684,2]
[341762284,1731216654657,-500.0,0.00030684,2]
[341762286,1731216654668,-500.0,0.00030684,2]
[341762288,1731216654679,-500.0,0.00030684,2]
[341762290,1731216654688,-500.0,0.00030684,2]
[341762292,1731216654698,-515.71016255,0.00030684,2]
[341762295,1731216654708,-528.21991989,0.00030684,2]
[341762296,1731216654717,-500.0,0.00030684,2]
[341762298,1731216654727,-500.0,0.00030684,2]
[341762300,1731216654739,-500.0,0.00030684,2]
[341762302,1731216654748,-315.98841706,0.00030684,2]
[341762304,1731216654757,-500.0,0.00030684,2]
[341762306,1731216654766,-500.0,0.00030684,2]
[341762308,1731216654776,-500.0,0.00030684,2]
[341762310,1731216654787,-500.0,0.00030684,2]
[341762312,1731216654796,-500.0,0.00030684,2]
[341762314,1731216654805,-500.0,0.00030684,2]
[341762316,1731216654814,-500.0,0.00030684,2]
[341762318,1731216654823,-500.0,0.00030684,2]
[341762319,1731216654834,-500.0,0.00030684,2]
[341762321,1731216654843,-500.0,0.00030684,2]
[341762323,1731216654852,-500.0,0.00030684,2]
[341762325,1731216654861,-500.0,0.00030684,2]
[341762327,1731216654871,-500.0,0.00030684,2]
[341762329,1731216654882,-500.0,0.00030684,2]
[341762331,1731216654891,-533.03644652,0.00030684,2]
[341762333,1731216654900,-537.86925775,0.00030684,2]
[341762335,1731216654909,-500.0,0.00030684,2]
[341762337,1731216654920,-500.0,0.00030684,2]
[341762339,1731216654929,-500.0,0.00030684,2]
[341762341,1731216654938,-500.0,0.00030684,2]
[341762343,1731216654948,-468.35750796,0.00030684,2]
[341762345,1731216654957,-500.0,0.00030684,2]
[341762347,1731216654966,-500.0,0.00030684,2]
[341762349,1731216654975,-500.0,0.00030684,2]
[341762351,1731216654984,-500.0,0.00030684,2]
[341762353,1731216654993,-500.0,0.00030684,2]
[341762355,1731216655003,-585.45,0.00030684,2]
[341762357,1731216655012,-500.0,0.00030684,2]
[341762359,1731216655021,-601.15369467,0.00030684,2]
[341762361,1731216655031,-500.0,0.00030684,2]
[341762362,1731216655039,-500.0,0.00030684,2]
[341762364,1731216655049,-500.0,0.00030684,2]
[341762366,1731216655058,-500.0,0.00030684,2]
[341762368,1731216655068,-500.0,0.00030684,2]
[341762370,1731216655077,-500.0,0.00030684,2]
[341762372,1731216655086,-500.0,0.00030684,2]
[341762374,1731216655095,-0.26794109,0.00030684,2]
[341762385,1731216655195,-499.73205891,0.00030684,2]
[341762387,1731216655205,-500.0,0.00030684,2]
[341762389,1731216655214,-500.0,0.00030684,2]
[341762391,1731216655223,-500.0,0.00030684,2]
[341762393,1731216655232,-500.0,0.00030684,2]
[341762395,1731216655244,-500.0,0.00030684,2]
[341762397,1731216655253,-500.0,0.00030684,2]
[341762399,1731216655263,-525.10217078,0.00030684,2]
[341762401,1731216655271,-500.0,0.00030684,2]
[341762403,1731216655281,-500.0,0.00030684,2]
[341762405,1731216655290,-500.0,0.00030684,2]
[341762407,1731216655299,-500.0,0.00030684,2]
[341762409,1731216655308,-500.0,0.00030684,2]
[341762411,1731216655317,-500.0,0.00030684,2]
[341762413,1731216655326,-312.0,0.000307,3]
[341762415,1731216655335,-331.86982736,0.00030858,2]
[341762416,1731216655344,-428.29305748,0.00030876,2]
[341762419,1731216655355,-795.12694252,0.00030876,2]
[341762421,1731216655364,-316.3442865,0.00030877,30]
[341762423,1731216655373,-331.86982735,0.00030943,2]
[341762425,1731216655383,-533.16391366,0.00030957,2]
[341762427,1731216655392,-2995.24,0.00030957,2]
[341762429,1731216655401,-2995.24,0.00030957,2]
[341762431,1731216655410,-2995.24,0.00030957,2]
[341762433,1731216655421,-2995.24,0.00030957,2]
[341762435,1731216655430,-2995.3537511,0.00030957,2]
[341762437,1731216655439,-500.0,0.00030957,2]
[341762439,1731216655448,-564.76,0.00030957,2]
[341762441,1731216655457,-506.81905352,0.00030958,2]
[341762442,1731216655466,-503.18260888,0.00030958,2]
[341762444,1731216655475,-512.02072593,0.00030958,2]
[341762446,1731216655485,-150.93356884,0.00030958,2]
[341762448,1731216655494,-500.0,0.00030958,2]
[341762450,1731216655503,-503.79515585,0.00030958,2]
[341762452,1731216655512,-500.0,0.00030958,2]
[341762454,1731216655521,-500.0,0.00030958,2]
[341762456,1731216655530,-500.0,0.00030958,2]
[341762458,1731216655539,-500.0,0.00030958,2]
[341762460,1731216655549,-500.0,0.00030958,2]
[341762462,1731216655558,-384.6704633,0.00030958,2]
[341762464,1731216655567,-500.0,0.00030958,2]
[341762466,1731216655576,-291.42833312,0.00030958,2]
[341762468,1731216655585,-500.0,0.00030958,2]
[341762470,1731216655594,-500.0,0.00030958,2]
[341762472,1731216655603,-500.0,0.00030958,2]
[341762474,1731216655612,-504.22219023,0.00030958,2]
[341762476,1731216655621,-502.59020049,0.00030958,2]
[341762478,1731216655630,-505.76,0.00030958,2]
[341762480,1731216655639,-500.0,0.00030958,2]
[341762481,1731216655648,-313.72340794,0.00030958,2]
[341762484,1731216655658,-504.95982116,0.00030958,2]
[341762486,1731216655669,-537.58047353,0.00030958,2]
[341762487,1731216655679,-502.72105777,0.00030958,2]
[341762489,1731216655688,-500.0,0.00030958,2]
[341762491,1731216655698,-500.0,0.00030958,2]
[341762493,1731216655707,-500.0,0.00030958,2]
[341762495,1731216655716,-500.0,0.00030958,2]
[341762497,1731216655728,-503.5353093,0.00030958,2]
[341762499,1731216655737,-506.40463092,0.00030958,2]
[341762501,1731216655747,-500.0,0.00030958,2]
[341762503,1731216655756,-500.0,0.00030958,2]
[341762505,1731216655767,-500.0,0.00030958,2]
[341762507,1731216655776,-500.0,0.00030958,2]
[341762509,1731216655785,-500.0,0.00030958,2]
[341762511,1731216655795,-500.0,0.00030958,2]
[341762513,1731216655806,-500.0,0.00030958,2]
[341762515,1731216655817,-500.0,0.00030958,2]
[341762517,1731216655826,-517.16583108,0.00030958,2]
[341762519,1731216655835,-500.0,0.00030958,2]
[341762521,1731216655844,-200.0,0.00030958,2]
[341762522,1731216655853,-500.0,0.00030958,2]
[341762524,1731216655863,-500.0,0.00030958,2]
[341762526,1731216655873,-500.0,0.00030958,2]
[341762528,1731216655882,-325.06644976,0.00030958,2]
[341762530,1731216655892,-500.0,0.00030958,2]
[341762532,1731216655901,-506.60833931,0.00030958,2]
[341762534,1731216655911,-503.84392043,0.00030958,2]
[341762536,1731216655922,-500.0,0.00030958,2]
[341762538,1731216655931,-182.03736068,0.00030958,2]
[341762554,1731216656094,-500.0,0.00030136,2]
[341762555,1731216656103,-240.71195535,0.00030136,2]
[341762556,1731216656112,-500.0,0.00030136,2]
[341762557,1731216656121,-500.0,0.0003041,2]
[341762558,1731216656130,-235.09791345,0.00030958,2]
[341762559,1731216656139,-500.0,0.00030958,2]
[341762560,1731216656148,-503.08540763,0.00030958,2]
[341762561,1731216656157,-3399.78946066,0.00030958,2]
[341763287,1731217166310,163.725337,0.00013973,2]
[341763309,1731217526130,607.63888889,0.00020844,2]
[341763381,1731217832692,-155.101,0.00022838,2]
[341763383,1731217832701,-163.725337,0.00023435,2]
[341763385,1731217832711,-607.63888889,0.00024578,2]
[341763387,1731217832719,-24900.0,0.00025785,2]
[341763389,1731217832729,-288.747274,0.00025879,2]
[341763391,1731217832738,-171.9198373,0.00026071,2]
[341763393,1731217832748,-175.139847,0.00026364,2]
[341763395,1731217832757,-3000.0,0.00026401,2]
[341763397,1731217832767,-288.747274,0.00026564,2]
[341763399,1731217832776,-300.0,0.00027,2]
[341763401,1731217832786,-234.053931,0.000272,2]
[341763403,1731217832795,-288.747274,0.00027249,2]
[341763404,1731217832804,-300.0,0.0002734,2]
[341763405,1731217832813,-300.0,0.0002734,2]
[341763406,1731217832823,-752.38581081,0.00027342,2]
[341763407,1731217832833,-178.4067064,0.00027343,2]
[341763408,1731217832844,-10070.53184067,0.0002908,30]
[341763409,1731217832854,-544.09755453,0.0002908,2]
[341763410,1731217832863,-420.0,0.00029547,2]
[341763411,1731217832873,-151.0,0.0003,120]
[341763413,1731217832883,-155.0,0.0003,120]
[341763414,1731217832893,-736.0230992,0.00030036,2]
[341763416,1731217832902,-300.0,0.00030074,2]
[341763417,1731217832911,-589.38,0.00030126,3]
[341763418,1731217832921,-294.69,0.00030126,3]
[341763419,1731217832930,-884.09,0.00030126,3]
[341763420,1731217832939,-500.0,0.00030135,2]
[341763421,1731217832948,-500.0,0.00030135,2]
[341763422,1731217832958,-500.0,0.00030135,2]
[341763423,1731217832967,-500.0,0.00030135,2]
[341763424,1731217832976,-500.0,0.00030135,2]
[341763425,1731217832985,-500.0,0.00030135,2]
[341763426,1731217832994,-500.0,0.00030135,2]
[341763427,1731217833003,-478.17222665,0.00030135,2]
[341763428,1731217833012,-500.0,0.00030135,2]
[341763429,1731217833021,-500.0,0.00030135,2]
[341763430,1731217833031,-500.0,0.00030135,2]
[341763431,1731217833040,-500.0,0.00030135,2]
[341763432,1731217833050,-500.0,0.00030135,2]
[341763433,1731217833070,-500.0,0.00030135,2]
[341763434,1731217833231,-500.0,0.00030135,2]
[341763435,1731217833241,-500.0,0.00030135,2]
[341763436,1731217833251,-177.99321148,0.00030135,2]
[341763437,1731217833261,-500.0,0.00030135,2]
[341763438,1731217833270,-500.0,0.00030135,2]
[341763439,1731217833279,-500.0,0.00030135,2]
[341763440,1731217833289,-185.62124661,0.00030135,2]
[341763441,1731217833298,-500.0,0.00030135,2]
[341763442,1731217833307,-500.0,0.00030135,2]
[341763443,1731217833317,-713.44,0.00030135,2]
[341763444,1731217833326,-508.11830756,0.00030136,2]
[341763445,1731217833336,-500.0,0.00030136,2]
[341763446,1731217833348,-500.0,0.00030136,2]
[341763447,1731217833357,-503.03336089,0.00030136,2]
[341763448,1731217833366,-500.0,0.00030136,15]
[341763449,1731217833376,-516.31066089,0.00030136,2]
[341763450,1731217833386,-438.01200611,0.00030136,2]
[341763451,1731217833395,-500.0,0.00030136,2]
[341763452,1731217833404,-500.0,0.00030136,2]
[341763453,1731217833414,-506.60833931,0.00030136,2]
[341763454,1731217833423,-620.52434027,0.00030136,2]
[341763455,1731217833432,-500.0,0.00030136,2]
[341763456,1731217833442,-500.0,0.00030136,2]
[341763457,1731217833451,-500.0,0.00030136,2]
[341763458,1731217833460,-500.0,0.00030136,2]
[341763459,1731217833469,-500.0,0.00030136,2]
[341763460,1731217833478,-605.16076335,0.00030136,2]
[341763461,1731217833487,-500.0,0.00030136,2]
[341763462,1731217833496,-500.0,0.00030136,2]
[341763463,1731217833506,-500.0,0.00030136,2]
[341763464,1731217833515,-518.29428407,0.00030136,2]
[341763465,1731217833524,-500.0,0.00030136,2]
[341763466,1731217833533,-507.14610939,0.00030136,2]
[341763467,1731217833543,-500.0,0.00030136,2]
[341763468,1731217833552,-500.0,0.00030136,2]
[341763469,1731217833561,-500.0,0.00030136,2]
[341763470,1731217833571,-500.0,0.00030136,2]
[341763471,1731217833581,-492.00199656,0.00030136,2]
[341763472,1731217833591,-500.0,0.00030136,2]
[341763473,1731217833602,-500.0,0.00030136,2]
[341763474,1731217833612,-500.0,0.00030136,2]
[341763475,1731217833622,-547.36290395,0.00030136,2]
[341763476,1731217833632,-500.0,0.00030136,2]
[341763477,1731217833642,-500.0,0.00030136,2]
[341763478,1731217833653,-500.0,0.00030136,2]
[341763479,1731217833663,-500.0,0.00030136,2]
[341763480,1731217833673,-405.49496383,0.00030136,2]
[341763481,1731217833683,-500.0,0.00030136,2]
[341763482,1731217833692,-500.0,0.00030136,2]
[341763483,1731217833702,-500.0,0.00030136,2]
[341763484,1731217833713,-500.0,0.00030136,2]
[341763485,1731217833723,-501.88231188,0.00030136,2]
[341763486,1731217833733,-507.93039765,0.00030136,2]
[341763487,1731217833744,-500.0,0.00030136,2]
[341763488,1731217833754,-506.73183209,0.00030136,2]
[341763489,1731217833765,-509.61172301,0.00030136,2]
[341763490,1731217833775,-502.48448002,0.00030136,2]
[341763491,1731217833785,-500.0,0.00030136,2]
[341763492,1731217833795,-500.0,0.00030136,2]
[341763493,1731217833805,-500.0,0.00030136,2]
[341763494,1731217833815,-500.0,0.00030136,2]
[341763495,1731217833827,-524.07574945,0.00030136,2]
[341763496,1731217833837,-500.0,0.00030136,2]
[341763497,1731217833851,-500.0,0.00030136,2]
[341763498,1731217833862,-500.0,0.00030136,2]
[341763499,1731217833875,-500.0,0.00030136,2]
[341763500,1731217833885,-500.0,0.00030136,2]
[341763501,1731217833896,-500.0,0.00030136,2]
[341763502,1731217833906,-508.60400807,0.00030136,2]
[341763503,1731217833917,-500.0,0.00030136,2]
[341763504,1731217833927,-500.0,0.00030136,2]
[341763505,1731217833938,-503.34281419,0.00030136,2]
[341763506,1731217833949,-219.1616947,0.00030136,2]
[341763507,1731217833959,-500.0,0.00030136,2]
[341763508,1731217833969,-500.0,0.00030136,2]
[341763509,1731217833980,-500.0,0.00030136,2]
[341763510,1731217833989,-504.22219023,0.00030136,2]
[341763511,1731217834000,-500.0,0.00030136,2]
[341763512,1731217834010,-514.71597777,0.00030136,2]
[341763513,1731217834020,-500.0,0.00030136,2]
[341763514,1731217834032,-500.0,0.00030136,2]
[341763515,1731217834042,-529.43679784,0.00030136,2]
[341763516,1731217834052,-151.31023586,0.00030136,2]
[341763517,1731217834061,-500.0,0.00030136,2]
[341763518,1731217834071,-500.0,0.00030136,2]
[341763519,1731217834081,-506.43871574,0.00030136,2]
[341763520,1731217834091,-500.0,0.00030136,2]
[341763521,1731217834104,-500.0,0.00030136,2]
[341763522,1731217834114,-500.0,0.00030136,2]
[341763523,1731217834127,-517.94918106,0.00030136,2]
[341763524,1731217834138,-500.0,0.00030136,2]
[341763525,1731217834147,-500.0,0.00030136,2]
[341763526,1731217834158,-500.0,0.00030136,2]
[341763527,1731217834168,-500.0,0.00030136,2]
[341763528,1731217834178,-500.0,0.00030136,2]
[341763529,1731217834188,-500.0,0.00030136,2]
[341763530,1731217834198,-500.0,0.00030136,2]
[341763531,1731217834210,-509.43999052,0.00030136,2]
[341763532,1731217834220,-500.0,0.00030136,2]
[341763533,1731217834232,-500.0,0.00030136,2]
[341763534,1731217834247,-500.0,0.00030136,2]
[341763535,1731217834262,-500.0,0.00030136,2]
[341763536,1731217834277,-500.0,0.00030136,2]
[341763537,1731217834290,-500.0,0.00030136,2]
[341763538,1731217834301,-517.16583108,0.00030136,2]
[341763539,1731217834315,-500.0,0.00030136,2]
[341763540,1731217834328,-500.0,0.00030136,2]
[341763541,1731217834340,-500.0,0.00030136,2]
[341763542,1731217834355,-242.91344844,0.00030136,2]
[341763543,1731217834368,-500.0,0.00030136,2]
[341763544,1731217834380,-500.0,0.00030136,2]
[341763545,1731217834392,-500.0,0.00030136,2]
[341763546,1731217834406,-500.0,0.00030136,2]
[341763547,1731217834420,-500.0,0.00030136,2]
[341763548,1731217834433,-500.0,0.00030136,2]
[341763549,1731217834445,-500.0,0.00030136,2]
[341763550,1731217834457,-500.0,0.00030136,2]
[341763551,1731217834469,-500.0,0.00030136,2]
[341763552,1731217834484,-500.0,0.00030136,2]
[341763553,1731217834497,-500.0,0.00030136,2]
[341763554,1731217834510,-500.0,0.00030136,2]
[341763555,1731217834522,-506.05040298,0.00030136,2]
[341763556,1731217834532,-325.06644976,0.00030136,2]
[341763557,1731217834544,-500.0,0.00030136,2]
[341763558,1731217834556,-182.03736068,0.00030136,2]
[341763559,1731217834569,-500.40563276,0.00030136,2]
[341763560,1731217834582,-500.0,0.00030136,2]
[341763561,1731217834595,-545.41826878,0.00030136,2]
[341763562,1731217834608,-512.37100761,0.00030136,2]
[341763563,1731217834620,-500.0,0.00030136,2]
[341763564,1731217834632,-500.0,0.00030136,2]
[341763565,1731217834646,-554.08560707,0.00030136,2]
[341763566,1731217834659,-500.0,0.00030136,2]
[341763567,1731217834673,-209.11114463,0.00030136,2]
[341763568,1731217834686,-500.0,0.00030136,2]
[341763569,1731217834697,-3257.78,0.00030136,2]
[341763570,1731217834708,-503.84392043,0.00030136,2]
[341763571,1731217834719,-500.0,0.00030136,2]
[341763572,1731217834731,-500.0,0.00030136,2]
[341763573,1731217834743,-150.48791073,0.00030136,2]
[341763574,1731217834757,-500.0,0.00030136,2]
[341763575,1731217834770,-1755.26,0.00030136,2]
[341763576,1731217834780,-500.0,0.00030136,2]
[341763577,1731217834790,-317.08,0.00030136,2]
[341763578,1731217834801,-517.49258029,0.00030136,2]
[341763579,1731217834812,-500.0,0.00030136,2]
[341763580,1731217834825,-1032.04,0.00030136,2]
[341763581,1731217834836,-500.0,0.00030136,2]
[341763582,1731217834849,-500.0,0.00030136,2]
[341763583,1731217834860,-624.47431125,0.00030136,2]
[341763584,1731217834871,-500.0,0.00030136,2]
[341763585,1731217834882,-500.0,0.00030136,2]
[341763586,1731217834893,-291.49998199,0.00030136,2]
[341763587,1731217834905,-500.0,0.00030136,2]
[341763588,1731217834917,-500.0,0.00030136,2]
[341763589,1731217834928,-500.0,0.00030136,2]
[341763590,1731217834940,-500.0,0.00030136,2]
[341763591,1731217834951,-500.0,0.00030136,2]
[341763592,1731217834964,-500.0,0.00030136,2]
[341763593,1731217834975,-500.0,0.00030136,2]
[341763594,1731217834986,-500.0,0.00030136,2]
[341763595,1731217834997,-500.0,0.00030136,2]
[341763596,1731217835008,-508.63469702,0.00030136,2]
[341763597,1731217835019,-524.53918844,0.00030136,2]
[341763598,1731217835030,-500.0,0.00030136,2]
[341763599,1731217835042,-500.0,0.00030136,2]
[341763600,1731217835053,-500.0,0.00030136,2]
[341763601,1731217835064,-500.0,0.00030136,2]
[341763602,1731217835075,-500.0,0.00030136,2]
[341763603,1731217835086,-500.0,0.00030136,2]
[341763604,1731217835098,-500.0,0.00030136,2]
[341763605,1731217835109,-500.0,0.00030136,2]
[341763606,1731217835120,-500.0,0.00030136,2]
[341763607,1731217835132,-500.0,0.00030136,2]
[341763608,1731217835144,-500.0,0.00030136,2]
[341763609,1731217835155,-500.0,0.00030136,2]
[341763610,1731217835166,-500.0,0.00030136,2]
[341763611,1731217835179,-500.0,0.00030136,2]
[341763612,1731217835191,-500.0,0.00030136,2]
[341763613,1731217835202,-250.0,0.00030136,2]
[341763614,1731217835214,-163.0,0.00030136,2]
[341763615,1731217835226,-500.0,0.00030136,2]
[341763616,1731217835237,-504.28684336,0.00030136,2]
[341763617,1731217835250,-500.0,0.00030136,2]
[341763618,1731217835261,-500.0,0.00030136,2]
[341763619,1731217835272,-500.0,0.00030136,2]
[341763620,1731217835283,-500.0,0.00030136,2]
[341763621,1731217835295,-500.0,0.00030136,2]
[341763622,1731217835307,-500.0,0.00030136,2]
[341763623,1731217835318,-500.0,0.00030136,2]
[341763624,1731217835329,-500.0,0.00030136,2]
[341763625,1731217835341,-500.0,0.00030136,2]
[341763626,1731217835353,-500.0,0.00030136,2]
[341763627,1731217835365,-203.49262693,0.00030136,2]
[341763628,1731217835597,-296.50737307,0.00030136,2]
[341763629,1731217835607,-441.84539496,0.00030136,2]
[341763671,1731217838719,-1819.81,0.00030126,10]
[341763673,1731217838730,-62.28415378,0.00030136,2]
[341763676,1731217838740,-500.0,0.00030136,2]
[341763678,1731217838750,-500.0,0.00030136,2]
[341763680,1731217838760,-518.09337068,0.00030136,2]
[341763682,1731217838770,-500.0,0.00030136,2]
[341763684,1731217838779,-500.0,0.00030136,2]
[341763686,1731217838789,-385.70747901,0.00030136,2]
[341763688,1731217838799,-500.0,0.00030136,2]
[341763690,1731217838808,-500.0,0.00030136,2]
[341763692,1731217838818,-500.0,0.00030136,2]
[341763694,1731217838828,-648.72119081,0.00030136,2]
[341763696,1731217838838,-500.0,0.00030136,2]
[341763698,1731217838849,-500.0,0.00030136,2]
[341763700,1731217838858,-500.0,0.00030136,2]
[341763702,1731217838868,-500.0,0.00030136,2]
[341763704,1731217838878,-500.0,0.00030136,2]
[341763706,1731217838887,-489.33608335,0.00030136,2]
[341763708,1731217838899,-10.66391665,0.00030136,2]
[341763710,1731217838909,-500.0,0.00030136,2]
[341763712,1731217838918,-500.0,0.00030136,2]
[341763714,1731217838927,-500.0,0.00030136,2]
[341763716,1731217838936,-323.97121244,0.00030136,2]
[341763718,1731217838946,-509.22533756,0.00030136,2]
[341763720,1731217838955,-500.0,0.00030136,2]
[341763722,1731217838965,-510.25365357,0.00030136,2]
[341763724,1731217838974,-500.0,0.00030136,2]
[341763726,1731217838983,-500.0,0.00030136,2]
[341763728,1731217838992,-535.51291885,0.00030136,2]
[341763730,1731217839002,-500.0,0.00030136,2]
[341763732,1731217839011,-500.0,0.00030136,2]
[341763734,1731217839019,-500.0,0.00030136,2]
[341763736,1731217839029,-500.0,0.00030136,2]
[341763738,1731217839038,-500.0,0.00030136,2]
[341763740,1731217839047,-500.0,0.00030136,2]
[341763742,1731217839056,-500.0,0.00030136,2]
[341763744,1731217839065,-500.0,0.00030136,2]
[341763746,1731217839074,-375.83133734,0.00030136,2]
[341763748,1731217839084,-503.18260888,0.00030136,2]
[341763750,1731217839093,-500.0,0.00030136,2]
[341763752,1731217839103,-500.0,0.00030136,2]
[341763754,1731217839113,-500.0,0.00030136,2]
[341763756,1731217839123,-500.0,0.00030136,2]
[341763758,1731217839135,-500.0,0.00030136,2]
[341763760,1731217839144,-500.0,0.00030136,2]
[341763762,1731217839153,-500.0,0.00030136,2]
[341763764,1731217839162,-500.0,0.00030136,2]
[341763766,1731217839172,-535.99488805,0.00030136,2]
[341763768,1731217839182,-500.0,0.00030136,2]
[341763770,1731217839191,-1775.0,0.00030136,2]
[341763772,1731217839200,-500.0,0.00030136,2]
[341763774,1731217839211,-500.0,0.00030136,2]
[341763776,1731217839220,-500.0,0.00030136,2]
[341763778,1731217839229,-500.0,0.00030136,2]
[341763780,1731217839238,-526.64775086,0.00030136,2]
[341763782,1731217839247,-1701.99,0.00030136,2]
[341763784,1731217839256,-500.0,0.00030136,2]
[341763786,1731217839265,-500.0,0.00030136,2]
[341763788,1731217839274,-169.30403693,0.00030136,2]
[341763790,1731217839283,-583.99056932,0.00030136,2]
[341763792,1731217839292,-652.37,0.00030136,2]
[341763793,1731217839302,-504.36647302,0.00030136,2]
[341763794,1731217839311,-500.0,0.00030136,2]
[341763795,1731217839319,-537.38615851,0.00030136,2]
[341763796,1731217839328,-512.02072593,0.00030136,2]
[341763797,1731217839337,-464.83068851,0.00030136,2]
[341763798,1731217839347,-500.0,0.00030136,2]
[341763799,1731217839356,-500.0,0.00030136,2]
[341763800,1731217839364,-541.03943652,0.00030136,2]
[341763801,1731217839373,-500.0,0.00030136,2]
[341763802,1731217839382,-500.0,0.00030136,2]
[341763803,1731217839391,-500.0,0.00030136,2]
[341763804,1731217839401,-4438.43,0.00030136,2]
[341763805,1731217839410,-500.0,0.00030136,2]
[341763806,1731217839420,-544.67465777,0.00030136,2]
[341763807,1731217839429,-520.29446879,0.00030136,2]
[341763808,1731217839439,-507.83078241,0.00030136,2]
[341763809,1731217839448,-509.18936851,0.00030136,2]
[341763810,1731217839457,-500.0,0.00030136,2]
[341763811,1731217839466,-500.0,0.00030136,2]
[341763812,1731217839475,-500.0,0.00030136,2]
[341763813,1731217839484,-500.0,0.00030136,2]
[341763814,1731217839493,-500.0,0.00030136,2]
[341763815,1731217839501,-500.0,0.00030136,2]